[Event "93rd German Championship 2022"]
[Site "Magdeburg"]
[Date "2022.08.19"]
[Round "8.12"]
[White "Florstedt, Johannes"]
[Black "Parvanyan, Alfred"]
[Result "1-0"]
[ECO "B30"]
[WhiteElo "2368"]
[BlackElo "2126"]
[Annotator "TA"]
[PlyCount "65"]
[EventDate "2022.08.14"]
[EventType "swiss"]
[EventCountry "GER"]
[SourceTitle "playchess.com"]
[Source "ChessBase"]
[SourceQuality "1"]
[TimeControl "40/5400+30:1800+30"]

{[%evp 9,65,30,21,24,18,15,62,62,62,51,75,71,84,83,99,94,106,80,128,132,152,141,146,134,265,188,181,185,301,291,296,276,274,235,319,308,841,844,845,838,833,819,862,826,1068,1068,1538,1178,1785,942,1595,33,1583,1576,1485,1422,1241,1145]} 1. e4 {[%emt 0:03:28]} c5 {[%emt 0:01:25]} 2. Nf3 {[%emt 0:00:07]} Nc6 {[%emt 0:00:12]} 3. Bc4 {[%emt 0:01:14]} e5 {[%emt 0:06:40]} 4. O-O {[%emt 0:00:39]} Be7 {[%emt 0:00:30]} 5. d4 {[%emt 0:00:31]} cxd4 {[%emt 0:06:27]} 6. c3 $1 {[%emt 0:00:07][%cal Bc2c3,Bc3d4,Bd4d5][%mdl 32] B30: Sicilian: 2...Nc6 3 Bb5, lines without ...g6.} Nf6 {[%emt 0:06:02]} 7. cxd4 {[%emt 0:05:11]} d6 {[%emt 0:02:27]} (7... exd4 $11 8. Re1 d6) 8. d5 $14 {[%emt 0:00:33] White is slightly better.} Nb8 {[%emt 0:02:31][%cal Bc6b8,Bb8d7,Bd7b6][%mdl 32]} 9. Nc3 {[%emt 0:00:07]} O-O {[%emt 0:00:51]} 10. h3 {[%emt 0:00:35]} Nbd7 {[%emt 0:01:14] [#]} 11. Re1 $146 {[%emt 0:00:24][%mdl 2048] White is on the roll. White is more active.} ({Predecessor:} 11. Be3 Nh5 12. a4 g6 13. a5 f5 14. a6 bxa6 15. exf5 gxf5 16. Bxa6 Ng7 17. Nb5 {1-0 (29) Feuerstack,A (2449)-Bokelbrink,U (2312) Germany 2017}) 11... Nb6 {[%emt 0:14:09]} 12. Bd3 {[%emt 0:01:34]} Bd7 {[%emt 0:02:12]} 13. a4 {[%emt 0:00:54]} Rc8 {[%emt 0:01:04]} (13... Qc7 $142) 14. Be3 $16 {[%emt 0:03:42][%cal Bc1e3,Be3a7,Ba7b6][%mdl 32]} Nc4 {[%emt 0:06:47]} 15. Bxc4 {[%emt 0:05:48]} (15. Bxa7 Nxb2 16. Qd2 Nxd3 17. Qxd3 Qa5 $15) 15... Rxc4 {[%emt 0:02:28]} 16. Qb3 {[%emt 0:00:45]} (16. Bxa7 Qa5 17. Be3 Nxe4 $16) 16... Qc8 {[%emt 0:00:40]} (16... Rc8 $16 {might work better.}) 17. Nd2 {[%emt 0:03:05]} Rc7 {[%emt 0:01:16]} 18. Bxa7 {[%emt 0:00:39]} Nh5 {[%emt 0:04:20]} (18... Qe8 {was worth a try.} 19. Qb6 Rc8 20. Qxb7 Nh5) 19. Bb6 $18 {[%emt 0:08:11]} Bxh3 {[%emt 0:09:17]} 20. gxh3 {[%emt 0:01:33]} ({Don't go for} 20. Bxc7 $2 Qg4 21. g3 {[#]} Nxg3 $1 $19) 20... Qxh3 {[%emt 0:01:18][%cal Oh5f4] [#] ( -> ...Nf4!)} 21. Ne2 {[%emt 0:01:06]} (21. Bxc7 $2 {is a self mate.} Nf4 22. Qxb7 Qg2#) 21... Qg4+ {[%emt 0:00:40]} 22. Ng3 {[%emt 0:00:33]} Rc2 {[%emt 0:08:07]} (22... Rcc8 23. Qd1 Qxd1 24. Raxd1 Nxg3) 23. Qxc2 {[%emt 0:08:45]} Nxg3 {[%emt 0:01:20]} 24. fxg3 {[%emt 0:01:40]} Qxg3+ {[%emt 0:03:31]} 25. Kf1 {[%emt 0:00:07]} Bh4 {[%emt 0:05:22]} 26. Qc3 {[%emt 0:03:50]} Qh2 {[%emt 0:05:54]} 27. Re2 {[%emt 0:00:17]} Qh1+ {[%emt 0:00:21]} 28. Bg1 {[%emt 0:00:06] And now Rh2 would win.} f5 {[%emt 0:00:08]} 29. Qf3 {[%emt 0:00:14]} fxe4 {[%emt 0:00:13]} 30. Qxf8+ $1 {[%emt 0:00:06]} Kxf8 {[%emt 0:00:05]} 31. Rh2 {[%emt 0:00:05] Inhibits Qh3+. White is clearly winning.} Qxh2 {[%emt 0:03:02]} 32. Bxh2 {[%emt 0:00:06]} e3 {[%emt 0:00:05]} 33. Nc4 {[%emt 0:00:07] Black got outplayed after the opening.  Weighted Error Value: White=0.11 (very precise) /Black=0.39} 1-0

[Event "93rd German Championship 2022"]
[Site "Magdeburg"]
[Date "2022.08.19"]
[Round "8.13"]
[White "Colbow, Collin"]
[Black "Miller, Eduard"]
[Result "1-0"]
[ECO "B14"]
[WhiteElo "2325"]
[BlackElo "2350"]
[Annotator "TA"]
[PlyCount "99"]
[EventDate "2022.08.14"]
[EventType "swiss"]
[EventCountry "GER"]
[SourceTitle "playchess.com"]
[Source "ChessBase"]
[SourceQuality "1"]
[TimeControl "40/5400+30:1800+30"]

{[%evp 15,99,-27,14,12,39,48,65,58,57,56,75,63,79,69,70,83,131,141,141,148,134,31,16,39,191,195,197,193,401,394,401,411,411,404,384,390,659,661,651,652,636,629,763,574,1240,970,1289,970,1285,1290,1219,1279,1278,242,1278,1241,1133,1131,862,330,331,309,291,291,276,262,262,269,269,269,269,269,262,269,269,269,411,421,29969,29956,29983,29984,29984,29985,29988,29989]} 1. e4 {[%emt 0:00:03]} c6 {[%emt 0:00:09]} 2. d4 {[%emt 0:00:04]} d5 {[%emt 0:00:04]} 3. exd5 {[%emt 0:00:05]} cxd5 {[%emt 0:00:04]} 4. c4 {[%emt 0:00:04]} Nf6 {[%emt 0:01:24]} 5. Nc3 {[%emt 0:00:06]} g6 {[%emt 0:02:06]} 6. Qb3 {[%emt 0:20:24]} Bg7 {[%emt 0:05:39]} 7. cxd5 {[%emt 0:02:47]} O-O {[%emt 0:00:12]} 8. Nge2 {[%emt 0:03:37]} Na6 {[%emt 0:05:40][%mdl 1024] Black has compensation.} 9. g3 {[%emt 0:02:18] [#] 9.Nf4 is vanishing. B14: Caro-Kann: Panov-Botvinnik Attack with 5...e6 and 5...g6.} Bf5 $146 {[%emt 0:17:14]} ({Predecessor:} 9... Qb6 10. Qxb6 axb6 11. Bg2 Nb4 12. O-O Rd8 13. d6 Rxd6 14. Bf4 Rd7 15. Rfd1 Nfd5 16. Bd2 Rd8 17. a3 Nxc3 18. bxc3 Nc6 19. Bf4 {½-½ (51) Kobalia,M (2651)-Kamsky,G (2741) Khanty-Mansiysk 2013}) 10. Bg2 {[%emt 0:06:12]} Qd7 {[%emt 0:01:13][%cal Ob7b5]} 11. Bf4 {[%emt 0:06:56] White is slightly better.} Nh5 {[%emt 0:18:09]} 12. Be3 {[%emt 0:01:00] Black must now prevent h3.} Rac8 {[%emt 0:02:56]} 13. Rd1 {[%emt 0:04:12] And now h3 would win.} Nf6 {[%emt 0:05:53]} 14. h3 {[%emt 0:04:40] aiming for g4.} h5 {[%emt 0:01:47] Against g4} 15. Bf4 {[%emt 0:01:29]} b5 {[%emt 0:14:07]} ({Black should try} 15... Rcd8) 16. Qxb5 $16 {[%emt 0:12:15]} Qxb5 {[%emt 0:00:06]} 17. Nxb5 {[%emt 0:00:04]} Nb4 {[%emt 0:00:20]} 18. Nxa7 {[%emt 0:16:04]} (18. Nec3 $1 $16) 18... Rc2 $14 {[%emt 0:00:42]} 19. Rd2 {[%emt 0:00:56] Hoping for Rxc2.} Ne4 $2 {[%emt 0:18:49] This costs Black the game.} (19... Nd3+ $14 20. Kf1 Nxf4 21. Rxc2 Bxc2 22. Nxf4 g5) 20. Rxc2 $1 $18 {[%emt 0:04:30]} Nxc2+ {[%emt 0:00:04]} 21. Kf1 {[%emt 0:00:05]} Ra8 $2 {[%emt 0:02:42]} (21... Nxd4 $2 22. Nxd4 (22. Nc6 Nxc6 23. dxc6 Rd8 $16) 22... Bxd4 23. Nc6 $18) (21... g5) 22. Nc6 {[%emt 0:01:08][%cal Ba7c6,Bc6e7,Be7f5][%mdl 32]} Rxa2 {[%emt 0:00:33]} 23. g4 {[%emt 0:07:41]} Ra1+ {[%emt 0:00:57]} 24. Nc1 {[%emt 0:01:34]} hxg4 {[%emt 0:00:51]} 25. hxg4 {[%emt 0:00:04]} (25. Nxe7+ Kf8 $16) 25... g5 $2 {[%emt 0:00:18]} (25... Bxg4 26. Bxe4 Nxd4) 26. Nxe7+ {[%emt 0:00:50]} Kf8 {[%emt 0:00:02]} 27. Nxf5 {[%emt 0:00:11]} gxf4 {[%emt 0:00:05]} 28. Bxe4 {[%emt 0:01:30]} Rxc1+ {[%emt 0:00:13]} 29. Kg2 {[%emt 0:00:27]} Rxh1 {[%emt 0:00:45]} 30. Kxh1 {[%emt 0:00:08]} Nxd4 {[%emt 0:00:07]} 31. Nxg7 {[%emt 0:01:10]} Kxg7 {[%emt 0:00:03][%mdl 4096] Endgame KB-KN} 32. Kg2 {[%emt 0:00:51]} Kf6 {[%emt 0:00:09]} 33. f3 {[%emt 0:00:08]} Ke5 {[%emt 0:00:36]} 34. Kh3 $2 {[%emt 0:02:31]} (34. g5 Nb5 35. Kh3) 34... Nb5 $2 {[%emt 0:00:19]} (34... f6 35. g5 fxg5) 35. g5 {[%emt 0:00:41]} Nd6 {[%emt 0:01:32]} 36. b4 {[%emt 0:00:56]} Kd4 {[%emt 0:00:33]} 37. Kg4 $2 {[%emt 0:00:37]} (37. Bh7 Kxd5 38. Kg4) 37... Nxe4 {[%emt 0:01:24]} 38. fxe4 {[%emt 0:00:08]} Kxe4 {[%emt 0:00:23] K3P-KPP} 39. d6 {[%emt 0:00:04] Intending d7 and mate.} f3 {[%emt 0:00:06]} 40. Kg3 {[%emt 0:01:15]} Ke3 {[%emt 0:00:08]} 41. d7 {[%emt 0:30:14]} f2 {[%emt 0:30:06] [#]} 42. d8=Q $1 {[%emt 0:00:09] Qf6 would kill now.} ({Not} 42. Kg2 Ke2 43. d8=Q f1=Q+ 44. Kg3 Qf3+ 45. Kh4 Qe4+ 46. Kh3 Qf3+ 47. Kh4 Qe4+ 48. Kh3 Qf3+ 49. Kh4 $11) 42... f1=Q {[%emt 0:00:06] KQ-KQ} 43. Qb6+ {[%emt 0:00:00]} Ke4 {[%emt 0:00:00]} 44. Qf2 {[%emt 0:00:00] Inhibits Qf4+.} Qd3+ {[%emt 0:00:00]} 45. Kh4 {[%emt 0:00:00]} Qd1 {[%emt 0:00:00] [#]} (45... Qc4 {was called for.} 46. b5 Ke5+ 47. Kh5 Qxb5 48. Qf6+ Ke4 49. Qxf7 Qc5) 46. b5 $1 {[%emt 0:00:00] White wants to mate with b6.} Qh1+ {[%emt 0:00:00]} (46... Qa4 $18 47. Qxf7 Qxb5 48. Qe6+ Kd3) 47. Kg3 {[%emt 0:00:00] White mates.} Qc1 {[%emt 0:00:00]} 48. Qf3+ {[%emt 0:00:00]} Ke5 {[%emt 0:00:00]} 49. Qf6+ {[%emt 0:00:00]} Ke4 {[%emt 0:00:00]} 50. Qc6+ {[%emt 0:00:00] Weighted Error Value: White=0.42/Black=0.48} 1-0

[Event "93rd German Championship 2022"]
[Site "Magdeburg"]
[Date "2022.08.19"]
[Round "8.14"]
[White "Malek, Daniel"]
[Black "Feuerstack, Aljoscha"]
[Result "0-1"]
[ECO "B40"]
[WhiteElo "2355"]
[BlackElo "2473"]
[Annotator "TA"]
[PlyCount "42"]
[EventDate "2022.08.14"]
[EventType "swiss"]
[EventCountry "GER"]
[SourceTitle "playchess.com"]
[Source "ChessBase"]
[SourceQuality "1"]
[TimeControl "40/5400+30:1800+30"]

{[%evp 9,42,14,27,12,11,18,14,11,10,0,11,-2,0,-8,-14,-11,-12,-37,-34,-274,-269,-254,-265,-556,-556,-556,-542,-462,-465,-684,-676,-697,-696,-29997,-29998]} 1. e4 {[%emt 0:00:03]} c5 {[%emt 0:00:26]} 2. Nf3 {[%emt 0:00:11]} e6 {[%emt 0:00:04]} 3. g3 {[%emt 0:00:09]} d5 {[%emt 0:00:26]} 4. exd5 {[%emt 0:00:07]} exd5 {[%emt 0:00:03]} 5. d4 {[%emt 0:00:09]} cxd4 {[%emt 0:00:42]} 6. Nxd4 {[%emt 0:08:52] B40: Sicilian: 2...e6, Unusual lines.} Nc6 {[%emt 0:00:21]} 7. Bg2 {[%emt 0:01:10]} Bc5 {[%emt 0:00:28]} 8. Nxc6 {[%emt 0:09:37] The position is equal.} (8. Nb3 $5 {[%cal Rb3c5]} Qe7+ 9. Kf1 $11 (9. Qe2 Bb6 $11)) 8... bxc6 {[%emt 0:00:40]} 9. O-O {[%emt 0:00:05]} Nf6 {[%emt 0:01:39] Active counter play!} 10. c4 {[%emt 0:04:39]} O-O $36 {[%emt 0:00:28][%mdl 2048] Black is pushing.} 11. cxd5 {[%emt 0:01:46]} Ba6 {[%emt 0:09:55]} 12. Re1 {[%emt 0:02:46]} ({Don't play} 12. dxc6 Bxf1 13. Qxf1 Ng4 $15) 12... cxd5 {[%emt 0:07:40] White should prevent ...Qb6.} 13. Nc3 {[%emt 0:04:32][%cal Rc3d5]} Qb6 {[%emt 0:03:09]} 14. Be3 {[%emt 0:04:16] [#] White does not recover from this.} ({White should try} 14. Qc2 $1 $15) 14... d4 $1 $19 {[%emt 0:02:18]} 15. Na4 {[%emt 0:01:56]} ({Don't blunder} 15. Bxa8 $2 dxe3 16. Rxe3 Bxe3 $19) 15... dxe3 {[%emt 0:00:10]} 16. Nxb6 $2 {[%emt 0:00:37]} (16. Rxe3 {only move.} Rad8 17. Nxb6 Rxd1+ 18. Rxd1 Bxe3 19. Na4) 16... exf2+ {[%emt 0:00:07]} 17. Kh1 {[%emt 0:00:14]} fxe1=Q+ {[%emt 0:00:09]} 18. Qxe1 {[%emt 0:00:09]} Bxb6 {[%emt 0:00:25] A strong pair of Bishops.} ({But not} 18... axb6 $2 19. b4 Rae8 20. Qc3 $19) 19. Bxa8 {[%emt 0:02:59]} (19. a4 $142 Rfe8 20. Qb4) 19... Rxa8 {[%emt 0:00:17]} 20. h3 {[%emt 0:01:24]} Re8 {[%emt 0:00:51] [#]} 21. Qc3 $146 {[%emt 0:10:03]} ({Predecessor:} 21. Qd1 Re2 {0-1 (21) McShane,L (2655)-Lagarde,M (2638) London 2021}) 21... Bb7+ {[%emt 0:00:19] Weighted Error Value: White=1.09/Black=0.02 (flawless)} 0-1

[Event "93rd German Championship 2022"]
[Site "Magdeburg"]
[Date "2022.08.19"]
[Round "8.15"]
[White "Dobrikov, Marco"]
[Black "Colpe, Malte"]
[Result "1/2-1/2"]
[ECO "B90"]
[WhiteElo "2223"]
[BlackElo "2369"]
[Annotator "TA"]
[PlyCount "83"]
[EventDate "2022.08.14"]
[EventType "swiss"]
[EventCountry "GER"]
[SourceTitle "playchess.com"]
[Source "ChessBase"]
[SourceQuality "1"]
[TimeControl "40/5400+30:1800+30"]

{[%evp 20,83,15,25,27,0,0,10,65,50,68,65,85,70,87,75,71,37,32,31,20,0,30,0,0,0,0,0,0,-48,-32,-64,-55,-139,-127,-114,-140,-129,-117,-116,-72,-222,-181,-221,-197,-197,-117,-120,-43,-43,-43,-43,-43,-55,0,0,0,0,0,0,0,0,0,0,0,0]} 1. e4 {[%emt 0:00:03]} c5 {[%emt 0:00:06]} 2. Nf3 {[%emt 0:00:06]} d6 {[%emt 0:00:06]} 3. d4 {[%emt 0:00:34]} cxd4 {[%emt 0:00:06]} 4. Nxd4 {[%emt 0:00:03]} Nf6 {[%emt 0:00:09]} 5. Nc3 {[%emt 0:00:28]} a6 {[%emt 0:00:05]} 6. Be3 {[%emt 0:02:31]} e5 {[%emt 0:00:15]} 7. Nb3 {[%emt 0:00:29]} Be7 {[%emt 0:00:29]} 8. f3 {[%emt 0:00:44]} h5 {[%emt 0:00:35]} 9. Qd2 {[%emt 0:00:22]} Be6 {[%emt 0:00:32]} 10. Nd5 {[%emt 0:00:42]} Nxd5 {[%emt 0:01:12]} 11. exd5 {[%emt 0:00:04]} Bf5 {[%emt 0:00:10] B90: Sicilian Najdorf: Unusual White 6th moves, 6 Be3 Ng4 and 6 Be3 e5.} 12. Bd3 {[%emt 0:00:55]} Bxd3 {[%emt 0:01:12]} 13. Qxd3 {[%emt 0:00:11]} Bh4+ {[%emt 0:08:39]} (13... Nd7 $11) 14. g3 $14 {[%emt 0:01:35]} Bf6 {[%emt 0:02:05]} 15. O-O-O {[%emt 0:02:42]} Nd7 {[%emt 0:01:40]} 16. Kb1 {[%emt 0:00:22] [#] White is more active.} Qc7 $146 {[%emt 0:02:37]} ({Predecessor:} 16... b5 17. g4 a5 18. Nd2 hxg4 19. fxg4 Rh3 20. Ne4 Be7 21. Rdf1 Nf6 22. Ng5 Rh8 23. Qxb5+ {½-½ (53) Visakh,N (2516)-Shevtchenko,O (2054) Chess.com INT 2021}) 17. Nd2 {[%emt 0:04:55]} b5 {[%emt 0:11:04]} 18. Ne4 {[%emt 0:01:39][%cal Oc2c4]} Be7 {[%emt 0:01:31]} 19. h4 {[%emt 0:02:54]} Rc8 {[%emt 0:01:51]} 20. Rh2 {[%emt 0:10:30]} Nf6 {[%emt 0:08:41]} 21. Bg5 {[%emt 0:02:30]} Nxe4 {[%emt 0:01:46]} 22. fxe4 {[%emt 0:00:10]} Qd7 {[%emt 0:05:33]} 23. Bxe7 {[%emt 0:04:23]} Kxe7 {[%emt 0:06:24]} 24. Rf1 {[%emt 0:01:04]} (24. Qe3 $11) 24... Qg4 $1 $15 {[%emt 0:08:49]} 25. Rhf2 {[%emt 0:00:32]} f6 {[%emt 0:00:33]} 26. a4 {[%emt 0:02:33]} (26. Re1 $15) 26... Rc4 $17 {[%emt 0:04:31]} 27. axb5 {[%emt 0:00:15]} axb5 {[%emt 0:04:11]} 28. b3 {[%emt 0:01:12]} Rxe4 {[%emt 0:02:10]} 29. Qxb5 {[%emt 0:00:45]} Rc8 {[%emt 0:02:28]} 30. Rf5 {[%emt 0:06:08]} (30. Qb7+ $17 Qd7 31. Qxd7+ Kxd7 32. Kb2) 30... Rb4 {[%emt 0:06:02]} ({And not} 30... Re1+ 31. Rxe1 Qxf5 32. Qb7+ Kf8 33. Rc1 $15) 31. Qa6 {[%emt 0:04:15]} Rc7 {[%emt 0:03:47] Strongly threatening ...Qe4.} 32. R5f3 {[%emt 0:04:14] [#]} Qd4 {[%emt 0:08:15]} (32... Rd4 $1 $19 {[%cal Rd4d2] Hoping for ...Rd2.} 33. Rd3 Qe2) 33. Qd3 {[%emt 0:01:25] Against Rd2} Ra7 {[%emt 0:05:02]} (33... Qxd3 $17 34. Rxd3 e4) 34. Qxd4 $15 {[%emt 0:00:48]} Rxd4 {[%emt 0:00:05][%mdl 4096] Endgame KRR-KRR} 35. c4 {[%emt 0:00:26]} Rd2 {[%emt 0:00:18] ...Raa2 is the strong threat.} 36. R1f2 {[%emt 0:00:42]} Raa2 {[%emt 0:00:36]} (36... Rd1+ $1 $15 37. Kb2 Kf7) 37. Rxd2 $11 {[%emt 0:00:05] The position is equal.} Rxd2 {[%emt 0:00:08]} 38. Kc1 {[%emt 0:00:32]} Rd4 {[%emt 0:03:16]} 39. Kc2 {[%emt 0:00:19]} g6 {[%emt 0:01:12]} 40. Kc3 {[%emt 0:02:01]} f5 {[%emt 0:01:11]} 41. b4 {[%emt 0:34:52]} Rd1 {[%emt 0:02:03]} 42. Rd3 {[%emt 0:00:00] Weighted Error Value: White=0.16 (very precise) /Black=0.17 (very precise)} 1/2-1/2

[Event "93rd German Championship 2022"]
[Site "Magdeburg"]
[Date "2022.08.19"]
[Round "8.16"]
[White "Farokhi, Keyvan"]
[Black "Tschernatsch, Johannes"]
[Result "1-0"]
[ECO "B33"]
[WhiteElo "2332"]
[BlackElo "2296"]
[Annotator "TA"]
[PlyCount "109"]
[EventDate "2022.08.14"]
[EventType "swiss"]
[EventCountry "GER"]
[SourceTitle "playchess.com"]
[Source "ChessBase"]
[SourceQuality "1"]
[TimeControl "40/5400+30:1800+30"]

{[%evp 28,109,45,26,27,25,44,32,34,33,38,42,50,52,72,65,105,40,34,0,0,-8,-7,-6,0,0,0,-14,-16,-51,131,115,118,0,0,0,8,8,8,8,8,8,8,8,8,8,7,8,8,8,46,46,367,361,363,314,584,584,584,512,914,914,2158,1656,2542,852,29980,29981,29982,29983,29983,29984,29984,29985,29987,29988,29988,29989,29990,29991,29991,29992,29993,29994]} 1. e4 {[%emt 0:00:03]} c5 {[%emt 0:00:07]} 2. Nf3 {[%emt 0:00:05]} Nc6 {[%emt 0:00:04]} 3. d4 {[%emt 0:00:09]} cxd4 {[%emt 0:00:06]} 4. Nxd4 {[%emt 0:00:03]} Nf6 {[%emt 0:00:05]} 5. Nc3 {[%emt 0:00:06]} e5 {[%emt 0:00:05]} 6. Ndb5 {[%emt 0:00:04]} d6 {[%emt 0:00:07]} 7. Bg5 {[%emt 0:00:14]} a6 {[%emt 0:00:04]} 8. Na3 {[%emt 0:00:04]} b5 {[%emt 0:00:04]} 9. Bxf6 {[%emt 0:01:23]} gxf6 {[%emt 0:00:06]} 10. Nd5 {[%emt 0:00:04]} Bg7 {[%emt 0:00:05]} 11. Bd3 {[%emt 0:00:24]} Ne7 {[%emt 0:00:04]} 12. Nxe7 {[%emt 0:00:07]} Qxe7 {[%emt 0:00:05]} 13. O-O {[%emt 0:00:28]} O-O {[%emt 0:00:07]} 14. c4 {[%emt 0:00:04]} f5 {[%emt 0:00:06]} 15. Qf3 {[%emt 0:00:06]} ({Of course not} 15. exf5 e4 16. f6 Bxf6 $17) 15... d5 {[%emt 0:00:44] B33: Sicilian: Pelikan and Sveshnikov Variations.} 16. cxd5 {[%emt 0:05:04]} fxe4 {[%emt 0:00:30]} 17. Bxe4 {[%emt 0:02:31][%cal Od5d6] [#] Threatens to win with d6!} Rb8 {[%emt 0:00:18] White is slightly better.} 18. Rad1 {[%emt 0:09:30]} Qg5 {[%emt 0:04:13]} 19. d6 {[%emt 0:08:31] Black must now prevent d7.} Bg4 {[%emt 0:04:43]} 20. Qg3 {[%emt 0:00:10] [#] h3 is the strong threat.} h6 $146 {[%emt 0:01:38] [#]} ({Predecessor:} 20... Qf4 21. f3 Be6 22. Nc2 Qxg3 23. hxg3 Rfd8 24. Nb4 f5 25. Bb1 Rb6 26. Nd5 Rbxd6 {½-½ (38) Jonasson,J (2410)-Kopeikin,V (2416) ICCF email 2012}) 21. f3 $1 {[%emt 0:11:21]} Bd7 {[%emt 0:01:33]} 22. Qxg5 {[%emt 0:01:04]} (22. Qf2 $16) 22... hxg5 $14 {[%emt 0:00:04]} 23. g4 {[%emt 0:01:38]} Rfd8 {[%emt 0:07:31]} 24. Rd2 {[%emt 0:38:54]} Bf8 {[%emt 0:00:49]} 25. Rfd1 {[%emt 0:00:17]} Be6 {[%emt 0:08:32]} 26. Nc2 {[%emt 0:01:12]} Rb6 {[%emt 0:03:52]} 27. d7 {[%emt 0:02:16]} Bxa2 {[%emt 0:05:24]} 28. Bd5 {[%emt 0:02:08]} b4 $2 {[%emt 0:07:26]} 29. Bxa2 $16 {[%emt 0:08:53] White is more active.} b3 {[%emt 0:00:32]} 30. Bxb3 {[%emt 0:00:06]} Rxb3 $11 {[%emt 0:01:33]} 31. Kg2 {[%emt 0:02:32]} f6 {[%emt 0:04:30]} 32. Na3 {[%emt 0:03:39]} Bxa3 {[%emt 0:01:40]} 33. bxa3 {[%emt 0:00:02]} Rxa3 {[%emt 0:02:06][%mdl 4096] Endgame KRR-KRR} 34. Rc1 {[%emt 0:00:29] White wants to mate with Rc8.} Kf7 {[%emt 0:00:58]} 35. Rc8 {[%emt 0:00:33]} Ke7 {[%emt 0:00:44]} 36. Rxd8 {[%emt 0:00:03]} Kxd8 {[%emt 0:00:06] KR-KR} 37. Rd6 {[%emt 0:00:04]} a5 {[%emt 0:00:56]} (37... e4 {feels hotter.} 38. fxe4 a5 39. Rxf6 a4) 38. Rxf6 {[%emt 0:00:48] And now Re6 would win.} Kxd7 {[%emt 0:02:03]} (38... e4 {is interesting.} 39. fxe4 a4 40. Rg6 Ra2+) 39. Rf5 {[%emt 0:00:26][%csl LRe5,LRg5]} Kd6 {[%emt 0:18:28][%mdl 8192] Black cannot hold the game after this.} (39... Ra2+ $14 40. Kg3 e4) 40. Rxg5 $18 {[%emt 0:00:13]} a4 {[%emt 0:04:09]} 41. h4 {[%emt 0:05:51]} Rb3 $2 {[%emt 0:13:36]} (41... Ra2+ 42. Kg3 Ra3) 42. h5 {[%emt 0:02:19]} a3 {[%emt 0:06:53]} 43. Rg6+ {[%emt 0:04:48]} Kc5 {[%emt 0:04:18]} (43... Kd5 $142 44. Ra6 e4 45. Ra5+ Ke6 46. fxe4 Kf7) 44. Ra6 {[%emt 0:01:01]} Rb2+ {[%emt 0:04:29]} 45. Kg3 {[%emt 0:00:52]} Rb3 {[%emt 0:02:38]} 46. h6 {[%emt 0:03:36]} (46. g5 $142 Rb1 47. Rxa3) 46... e4 {[%emt 0:05:35]} 47. h7 {[%emt 0:00:15] White mates.} Rxf3+ {[%emt 0:00:56]} 48. Kg2 {[%emt 0:00:20]} Rf8 {[%emt 0:00:26]} 49. g5 {[%emt 0:00:18][%cal Bg4g5,Bg5g6,Bg6g7][%mdl 32]} e3 {[%emt 0:01:24]} 50. Rxa3 {[%emt 0:00:13]} Kd4 {[%emt 0:00:51]} 51. g6 {[%emt 0:00:19]} e2 {[%emt 0:00:56]} 52. Ra1 {[%emt 0:00:07]} Ke3 {[%emt 0:01:31]} 53. g7 {[%emt 0:00:25]} Rf2+ {[%emt 0:00:16]} 54. Kg1 {[%emt 0:00:11]} e1=N {[%emt 0:00:33]} 55. Rxe1+ {[%emt 0:00:11] Weighted Error Value: White=0.09 (flawless) /Black=0.45} 1-0